[Event "European Womens-ch 2025"]
[Site "Rhodes"]
[Date "2025.04.11"]
[Round "11.49"]
[White "Huseynova, Lala"]
[Black "Caku, Kler"]
[Result "1-0"]
[Annotator "NA"]
[ECO "C97"]
[WhiteElo "2065"]
[BlackElo "2036"]
[PlyCount "67"]
[EventDate "2025.03.29"]
[EventType "swiss"]
[EventCountry "GRE"]
[SourceTitle "playchess.com"]
[Source "ChessBase"]
[SourceQuality "1"]
[TimeControl "40/5400+30:1800+30"]

1. e4 {[%emt 0:00:02]} e5 {[%emt 0:00:11]} 2. Nf3 {[%emt 0:00:02]} Nc6 {[%emt 0:00:07]} 3. Bb5 {[%emt 0:00:03]} a6 {[%emt 0:00:07]} 4. Ba4 {[%emt 0:00:03]} Nf6 {[%emt 0:00:06]} 5. O-O {[%emt 0:00:04]} b5 {[%emt 0:00:05]} 6. Bb3 {[%emt 0:00:04]} Be7 {[%emt 0:00:08]} 7. Re1 {[%emt 0:00:18]} d6 {[%emt 0:00:16]} 8. c3 {[%emt 0:00:08]} O-O {[%emt 0:00:07]} 9. h3 {[%emt 0:00:03]} Na5 {[%emt 0:00:08]} 10. Bc2 {[%emt 0:00:03]} c5 {[%emt 0:00:05]} 11. d4 {[%emt 0:00:04]} Qc7 {[%emt 0:00:04]} 12. Nbd2 {[%emt 0:00:13]} Bd7 {[%emt 0:01:27]} 13. Nf1 {[%emt 0:00:47]} Nc4 {[%emt 0:01:22]} 14. Bd3 {[%emt 0:10:13]} Nb6 {[%emt 0:03:41]} 15. Bg5 {[%emt 0:03:34]} Kh8 {[%emt 0:09:02]} 16. Ng3 {[%emt 0:05:38]} Ng8 {[%emt 0:01:23]} 17. Rc1 {[%emt 0:04:56]} c4 {[%emt 0:11:14]} 18. Bc2 {[%emt 0:02:14]} Rab8 {[%emt 0:05:42]} 19. Bxe7 {[%emt 0:07:24]} Nxe7 {[%emt 0:00:06]} 20. Nf5 {[%emt 0:00:09]} Nxf5 {[%emt 0:12:22]} 21. exf5 {[%emt 0:00:05]} f6 {[%emt 0:00:52]} 22. Nh4 {[%emt 0:01:38]} Be8 {[%emt 0:01:16]} 23. Qg4 {[%emt 0:11:53]} Na4 {[%emt 0:09:49]} 24. Rb1 {[%emt 0:05:20]} Qa5 {[%emt 0:06:12]} 25. f4 {[%emt 0:02:54]} exd4 {[%emt 0:12:44]} 26. Re7 {[%emt 0:00:50]} Rg8 {[%emt 0:00:35]} 27. Ng6+ {[%emt 0:15:16]} Bxg6 {[%emt 0:00:06]} 28. fxg6 {[%emt 0:00:03]} h6 {[%emt 0:02:46]} 29. Rbe1 {[%emt 0:01:25]} d3 {[%emt 0:06:41]} 30. Qh5 {[%emt 0:00:26]} Qb6+ {[%emt 0:00:41]} 31. Kh2 {[%emt 0:00:27]} Rb7 {[%emt 0:00:39]} 32. Re8 {[%emt 0:08:13]} Qc6 {[%emt 0:02:14]} 33. Rxg8+ {[%emt 0:00:43]} Kxg8 {[%emt 0:00:06]} 34. Qd5+ {[%emt 0:00:19]} 1-0

[Event "European Womens-ch 2025"]
[Site "Rhodes"]
[Date "2025.04.11"]
[Round "11.50"]
[White "Golsta, Ramona"]
[Black "Heinatz, Gundula"]
[Result "1-0"]
[Annotator "NA"]
[ECO "D51"]
[WhiteElo "1943"]
[BlackElo "2111"]
[PlyCount "109"]
[EventDate "2025.03.29"]
[EventType "swiss"]
[EventCountry "GRE"]
[SourceTitle "playchess.com"]
[Source "ChessBase"]
[SourceQuality "1"]
[TimeControl "40/5400+30:1800+30"]

1. d4 {[%emt 0:00:01]} d5 {[%emt 0:00:08]} 2. c4 {[%emt 0:00:05]} e6 {[%emt 0:00:04]} 3. Nf3 {[%emt 0:00:05]} Nf6 {[%emt 0:00:13]} 4. Nc3 {[%emt 0:00:05]} Nbd7 {[%emt 0:00:13]} 5. Bg5 {[%emt 0:00:15]} h6 {[%emt 0:00:31]} 6. Bxf6 {[%emt 0:02:14]} Nxf6 {[%emt 0:00:11]} 7. e3 {[%emt 0:00:04]} c6 {[%emt 0:02:15]} 8. Bd3 {[%emt 0:00:22]} dxc4 {[%emt 0:06:46]} 9. Bxc4 {[%emt 0:00:11]} Bb4 {[%emt 0:01:08]} 10. O-O {[%emt 0:00:46]} O-O {[%emt 0:00:31]} 11. Rc1 {[%emt 0:02:33]} Qe7 {[%emt 0:08:05]} 12. Qc2 {[%emt 0:05:52]} c5 {[%emt 0:05:48]} 13. a3 {[%emt 0:01:15]} Bxc3 {[%emt 0:01:30]} 14. Qxc3 {[%emt 0:00:47]} cxd4 {[%emt 0:04:35]} 15. Nxd4 {[%emt 0:01:47]} e5 {[%emt 0:03:18]} 16. Nf3 {[%emt 0:01:26]} Re8 {[%emt 0:03:47]} 17. Qb3 {[%emt 0:02:46]} a6 {[%emt 0:06:10]} 18. Nxe5 {[%emt 0:18:13]} Qxe5 {[%emt 0:00:14]} 19. Bxf7+ {[%emt 0:00:04]} Kh8 {[%emt 0:00:14]} 20. Bxe8 {[%emt 0:00:15]} Qxe8 {[%emt 0:00:21]} 21. Rc7 {[%emt 0:01:45]} b5 {[%emt 0:08:26]} 22. Qf7 {[%emt 0:07:34]} Qxf7 {[%emt 0:00:13]} 23. Rxf7 {[%emt 0:00:04]} Kg8 {[%emt 0:00:13]} 24. Rc7 {[%emt 0:00:26]} Ne8 {[%emt 0:10:20]} 25. Rc5 {[%emt 0:01:32]} Be6 {[%emt 0:03:27]} 26. Rd1 {[%emt 0:00:44]} Ra7 {[%emt 0:04:29]} 27. Rc6 {[%emt 0:03:12]} Kf7 {[%emt 0:04:17]} 28. e4 {[%emt 0:07:33]} a5 {[%emt 0:01:10]} 29. f4 {[%emt 0:02:54]} Bb3 {[%emt 0:07:28]} 30. Rd8 {[%emt 0:01:09]} Re7 {[%emt 0:05:08]} 31. e5 {[%emt 0:01:42]} Be6 {[%emt 0:01:29]} 32. Kf2 {[%emt 0:05:40]} h5 {[%emt 0:00:16]} 33. Ke3 {[%emt 0:01:35]} g6 {[%emt 0:01:20]} 34. Kd4 {[%emt 0:04:27]} a4 {[%emt 0:00:45]} 35. Kc5 {[%emt 0:05:12]} Bc4 {[%emt 0:00:59]} 36. g3 {[%emt 0:01:19]} Be6 {[%emt 0:01:34]} 37. Kxb5 {[%emt 0:00:59]} Bb3 {[%emt 0:02:04]} 38. h3 {[%emt 0:03:56]} h4 {[%emt 0:03:28]} 39. gxh4 {[%emt 0:02:20]} Kg7 {[%emt 0:01:40]} 40. Rcc8 {[%emt 0:00:00]} Be6 {[%emt 0:00:00]} 41. Rb8 {[%emt 0:18:02]} Bxh3 {[%emt 0:07:37]} 42. Kxa4 {[%emt 0:00:39]} Kf7 {[%emt 0:01:19]} 43. Kb4 {[%emt 0:01:02]} Nc7 {[%emt 0:10:42]} 44. Rf8+ {[%emt 0:01:21]} Ke6 {[%emt 0:00:03]} 45. Rb6+ {[%emt 0:01:40]} Kd5 {[%emt 0:00:06]} 46. Rxg6 {[%emt 0:01:10]} Ne6 {[%emt 0:01:39]} 47. Rff6 {[%emt 0:00:50]} Kd4 {[%emt 0:03:03]} 48. a4 {[%emt 0:02:27]} Rb7+ {[%emt 0:00:39]} 49. Ka3 {[%emt 0:00:09]} Kd5 {[%emt 0:05:44]} 50. h5 {[%emt 0:02:35]} Nd4 {[%emt 0:01:09]} 51. Rb6 {[%emt 0:01:44]} Nc2+ {[%emt 0:00:45]} 52. Kb3 {[%emt 0:02:06]} Nd4+ {[%emt 0:00:09]} 53. Ka2 {[%emt 0:01:24]} Ra7 {[%emt 0:01:18]} 54. b3 {[%emt 0:01:12]} Ne2 {[%emt 0:00:37]} 55. h6 {[%emt 0:01:30]} 1-0

[Event "European Womens-ch 2025"]
[Site "Rhodes"]
[Date "2025.04.11"]
[Round "11.51"]
[White "Acarbay, Algi"]
[Black "Karadas, Hena"]
[Result "1-0"]
[Annotator "NA"]
[ECO "B23"]
[WhiteElo "2052"]
[BlackElo "1931"]
[PlyCount "101"]
[EventDate "2025.03.29"]
[EventType "swiss"]
[EventCountry "GRE"]
[SourceTitle "playchess.com"]
[Source "ChessBase"]
[SourceQuality "1"]
[TimeControl "40/5400+30:1800+30"]

1. e4 {[%emt 1:31:00]} c5 {[%emt 1:31:00]} 2. Nc3 {[%emt 0:00:30]} Nc6 {[%emt 0:00:30]} 3. Nge2 {[%emt 0:00:30]} Nf6 {[%emt 0:00:30]} 4. g3 {[%emt 0:00:30]} g6 {[%emt 0:00:30]} 5. Bg2 {[%emt 0:00:30]} Bg7 {[%emt 0:00:30]} 6. O-O {[%emt 0:00:30]} h5 {[%emt 0:00:30]} 7. h3 {[%emt 0:00:30]} d6 {[%emt 0:00:30]} 8. Nd5 {[%emt 0:00:30]} O-O {[%emt 0:00:30]} 9. d3 {[%emt 0:00:30]} e6 {[%emt 0:00:30]} 10. Nxf6+ {[%emt 0:00:30]} Qxf6 {[%emt 0:00:30]} 11. c3 {[%emt 0:00:30]} Rb8 {[%emt 0:00:30]} 12. Be3 {[%emt 0:00:30]} b5 {[%emt 0:00:30]} 13. Qd2 {[%emt 0:00:30]} Qd8 {[%emt 0:00:30]} 14. d4 {[%emt 0:00:30]} cxd4 {[%emt 0:00:30]} 15. cxd4 {[%emt 0:00:30]} b4 {[%emt 0:00:30]} 16. Rac1 {[%emt 0:00:30]} Ne7 {[%emt 0:00:30]} 17. b3 {[%emt 0:00:30]} Ba6 {[%emt 0:00:30]} 18. Rfd1 {[%emt 0:00:30]} d5 {[%emt 0:00:30]} 19. e5 {[%emt 0:00:30]} Qb6 {[%emt 0:00:30]} 20. g4 {[%emt 0:00:30]} hxg4 {[%emt 0:00:30]} 21. hxg4 {[%emt 0:00:30]} f5 {[%emt 0:00:30]} 22. exf6 {[%emt 0:00:30]} Rxf6 {[%emt 0:00:30]} 23. Nf4 {[%emt 0:00:30]} Rbf8 {[%emt 0:00:30]} 24. Nd3 {[%emt 0:00:30]} Bxd3 {[%emt 0:00:30]} 25. Qxd3 {[%emt 0:00:30]} Nc8 {[%emt 0:00:30]} 26. Rc2 {[%emt 0:00:30]} Nd6 {[%emt 0:00:30]} 27. Bg5 {[%emt 0:00:30]} Qb5 {[%emt 0:00:30]} 28. Qe3 {[%emt 0:00:30]} Qd7 {[%emt 0:00:30]} 29. Bxf6 {[%emt 0:00:30]} Bxf6 {[%emt 0:00:30]} 30. Rdc1 {[%emt 0:00:30]} Nb5 {[%emt 0:00:30]} 31. Rd1 {[%emt 0:00:30]} g5 {[%emt 0:00:30]} 32. Rcd2 {[%emt 0:00:30]} a6 {[%emt 0:00:30]} 33. Re1 {[%emt 0:00:30]} Kf7 {[%emt 0:00:30]} 34. f4 {[%emt 0:00:30]} gxf4 {[%emt 0:00:30]} 35. Qxf4 {[%emt 0:00:30]} Ke7 {[%emt 0:00:30]} 36. Qe3 {[%emt 0:00:30]} Rg8 {[%emt 0:00:30]} 37. Bf3 {[%emt 0:00:30]} Bg5 {[%emt 0:00:30]} 38. Qd3 {[%emt 0:00:30]} Bxd2 {[%emt 0:00:30]} 39. Qxd2 {[%emt 0:00:30]} Qd6 {[%emt 0:00:30]} 40. Kg2 {[%emt 0:00:30]} Nc3 {[%emt 0:00:30]} 41. Re5 {[%emt 0:30:30]} Kd7 {[%emt 0:30:30]} 42. Qh6 {[%emt 0:00:30]} Qe7 {[%emt 0:00:30]} 43. g5 {[%emt 0:00:30]} Qf7 {[%emt 0:00:30]} 44. Bh5 {[%emt 0:00:30]} Qe7 {[%emt 0:00:30]} 45. Bg4 {[%emt 0:00:30]} Kc7 {[%emt 0:00:30]} 46. Bxe6 {[%emt 0:00:30]} Rd8 {[%emt 0:00:30]} 47. Bxd5 {[%emt 0:00:30]} Qd7 {[%emt 0:00:30]} 48. Bf3 {[%emt 0:00:30]} Qd6 {[%emt 0:00:30]} 49. Re6 {[%emt 0:00:30]} Qxd4 {[%emt 0:00:30]} 50. Rc6+ {[%emt 0:00:30]} Kb8 {[%emt 0:00:30]} 51. Rb6+ {[%emt 0:00:30]} 1-0

[Event "European Womens-ch 2025"]
[Site "Rhodes"]
[Date "2025.04.11"]
[Round "11.52"]
[White "Bochnickova, Andrea"]
[Black "Nenova, Andzhelika"]
[Result "0-1"]
[Annotator "NA"]
[ECO "B33"]
[WhiteElo "2051"]
[BlackElo "1903"]
[PlyCount "66"]
[EventDate "2025.03.29"]
[EventType "swiss"]
[EventCountry "GRE"]
[SourceTitle "playchess.com"]
[Source "ChessBase"]
[SourceQuality "1"]
[TimeControl "40/5400+30:1800+30"]

1. e4 {[%emt 0:00:10]} c5 {[%emt 0:00:04]} 2. Nf3 {[%emt 0:00:06]} Nc6 {[%emt 0:00:06]} 3. d4 {[%emt 0:00:20]} cxd4 {[%emt 0:00:05]} 4. Nxd4 {[%emt 0:00:05]} Nf6 {[%emt 0:00:03]} 5. Nc3 {[%emt 0:00:08]} e5 {[%emt 0:00:06]} 6. Ndb5 {[%emt 0:00:27]} d6 {[%emt 0:00:05]} 7. Nd5 {[%emt 0:00:21]} Nxd5 {[%emt 0:00:07]} 8. exd5 {[%emt 0:00:06]} Nb8 {[%emt 0:00:02]} 9. a4 {[%emt 0:00:31]} Be7 {[%emt 0:00:16]} 10. Be2 {[%emt 0:00:22]} O-O {[%emt 0:00:31]} 11. O-O {[%emt 0:00:25]} a6 {[%emt 0:01:27]} 12. Na3 {[%emt 0:00:51]} Nd7 {[%emt 0:00:13]} 13. b4 {[%emt 0:01:22]} b6 {[%emt 0:00:39]} 14. Nc4 {[%emt 0:02:45]} a5 {[%emt 0:03:00]} 15. bxa5 {[%emt 0:10:27]} bxa5 {[%emt 0:00:07]} 16. Ba3 {[%emt 0:02:10]} Qc7 {[%emt 0:20:55]} 17. Rb1 {[%emt 0:01:11]} Ba6 {[%emt 0:01:10]} 18. Ne3 {[%emt 0:02:36]} Bxe2 {[%emt 0:02:09]} 19. Qxe2 {[%emt 0:00:05]} f5 {[%emt 0:00:21]} 20. f4 {[%emt 0:12:57]} g6 {[%emt 0:13:58]} 21. Kh1 {[%emt 0:04:33]} Rac8 {[%emt 0:04:55]} 22. Rb5 {[%emt 0:05:15]} Bf6 {[%emt 0:01:47]} 23. fxe5 {[%emt 0:10:38]} Nxe5 {[%emt 0:03:01]} 24. c4 {[%emt 0:05:43]} Rfe8 {[%emt 0:04:44]} 25. c5 {[%emt 0:06:30]} Qg7 {[%emt 0:17:58]} 26. Qa2 {[%emt 0:03:34]} Qh6 {[%emt 0:07:00]} 27. Nc4 {[%emt 0:06:46]} Ng4 {[%emt 0:00:22]} 28. h3 {[%emt 0:01:51]} Qf4 {[%emt 0:00:37]} 29. hxg4 {[%emt 0:02:13]} Qxf1+ {[%emt 0:00:06]} 30. Kh2 {[%emt 0:00:04]} Re1 {[%emt 0:00:33]} 31. Qd2 {[%emt 0:02:53]} Qh1+ {[%emt 0:01:03]} 32. Kg3 {[%emt 0:00:05]} Bh4+ {[%emt 0:00:05]} 33. Kf3 {[%emt 0:00:31]} Qf1+ {[%emt 0:00:10]} 0-1

[Event "European Womens-ch 2025"]
[Site "Rhodes"]
[Date "2025.04.11"]
[Round "11.53"]
[White "Golsta, Madara"]
[Black "Korenova, Martina"]
[Result "0-1"]
[Annotator "NA"]
[ECO "E73"]
[WhiteElo "1979"]
[BlackElo "2045"]
[PlyCount "56"]
[EventDate "2025.03.29"]
[EventType "swiss"]
[EventCountry "GRE"]
[SourceTitle "playchess.com"]
[Source "ChessBase"]
[SourceQuality "1"]
[TimeControl "40/5400+30:1800+30"]

1. c4 {[%emt 1:31:00]} g6 {[%emt 1:31:00]} 2. Nc3 {[%emt 0:00:30]} Bg7 {[%emt 0:00:30]} 3. d4 {[%emt 0:00:30]} Nf6 {[%emt 0:00:30]} 4. e4 {[%emt 0:00:30]} d6 {[%emt 0:00:30]} 5. Be2 {[%emt 0:00:30]} O-O {[%emt 0:00:30]} 6. h4 {[%emt 0:00:30]} h5 {[%emt 0:00:30]} 7. Bg5 {[%emt 0:00:30]} c5 {[%emt 0:00:30]} 8. d5 {[%emt 0:00:30]} b5 {[%emt 0:00:30]} 9. cxb5 {[%emt 0:00:30]} a6 {[%emt 0:00:30]} 10. bxa6 {[%emt 0:00:30]} Bxa6 {[%emt 0:00:30]} 11. Bxf6 {[%emt 0:00:30]} Bxf6 {[%emt 0:00:30]} 12. Bxh5 {[%emt 0:00:30]} Qa5 {[%emt 0:00:30]} 13. Rh3 {[%emt 0:00:30]} Qb4 {[%emt 0:00:30]} 14. Qc2 {[%emt 0:00:30]} gxh5 {[%emt 0:00:30]} 15. O-O-O {[%emt 0:00:30]} Nd7 {[%emt 0:00:30]} 16. Rg3+ {[%emt 0:00:30]} Bg7 {[%emt 0:00:30]} 17. Nh3 {[%emt 0:00:30]} Rfb8 {[%emt 0:00:30]} 18. f4 {[%emt 0:00:30]} Kf8 {[%emt 0:00:30]} 19. Rd2 {[%emt 0:00:30]} Bxc3 {[%emt 0:00:30]} 20. Rxc3 {[%emt 0:00:30]} Nf6 {[%emt 0:00:30]} 21. Ng5 {[%emt 0:00:30]} Bc8 {[%emt 0:00:30]} 22. e5 {[%emt 0:00:30]} Rxa2 {[%emt 0:00:30]} 23. Nh7+ {[%emt 0:00:30]} Nxh7 {[%emt 0:00:30]} 24. Qxh7 {[%emt 0:00:30]} Ra1+ {[%emt 0:00:30]} 25. Kc2 {[%emt 0:00:30]} Qxb2+ {[%emt 0:00:30]} 26. Kd3 {[%emt 0:00:30]} Qb1+ {[%emt 0:00:30]} 27. Rdc2 {[%emt 0:00:30]} Qf1+ {[%emt 0:00:30]} 28. Re2 {[%emt 0:00:30]} Ba6+ {[%emt 0:00:30]} 0-1

[Event "European Womens-ch 2025"]
[Site "Rhodes"]
[Date "2025.04.11"]
[Round "11.54"]
[White "Alexandri, Vasiliki"]
[Black "Mihaljevic, Eva"]
[Result "1-0"]
[Annotator "NA"]
[ECO "D52"]
[WhiteElo "1927"]
[BlackElo "2039"]
[PlyCount "87"]
[EventDate "2025.03.29"]
[EventType "swiss"]
[EventCountry "GRE"]
[SourceTitle "playchess.com"]
[Source "ChessBase"]
[SourceQuality "1"]
[TimeControl "40/5400+30:1800+30"]

1. d4 {[%emt 0:00:03]} d5 {[%emt 0:00:06]} 2. c4 {[%emt 0:00:06]} e6 {[%emt 0:00:05]} 3. Nc3 {[%emt 0:00:06]} Nf6 {[%emt 0:00:05]} 4. Nf3 {[%emt 0:00:07]} c6 {[%emt 0:00:06]} 5. Bg5 {[%emt 0:00:07]} Nbd7 {[%emt 0:00:06]} 6. e3 {[%emt 0:00:12]} Qa5 {[%emt 0:00:27]} 7. cxd5 {[%emt 0:00:22]} Nxd5 {[%emt 0:00:48]} 8. Qd2 {[%emt 0:00:34]} N7f6 {[%emt 0:08:37]} 9. Bd3 {[%emt 0:19:04]} b6 {[%emt 0:17:58]} 10. O-O {[%emt 0:02:43]} Bb7 {[%emt 0:02:47]} 11. e4 {[%emt 0:07:38]} Nxc3 {[%emt 0:00:36]} 12. bxc3 {[%emt 0:00:09]} h6 {[%emt 0:04:31]} 13. Bf4 {[%emt 0:03:57]} Be7 {[%emt 0:03:04]} 14. Rfe1 {[%emt 0:11:51]} Rd8 {[%emt 0:06:13]} 15. Ne5 {[%emt 0:06:58]} c5 {[%emt 0:06:38]} 16. Nc4 {[%emt 0:06:46]} Qa4 {[%emt 0:00:29]} 17. Rab1 {[%emt 0:17:41]} Qd7 {[%emt 0:02:19]} 18. Ne5 {[%emt 0:01:07]} Qc8 {[%emt 0:01:08]} 19. Bb5+ {[%emt 0:00:30]} Kf8 {[%emt 0:00:24]} 20. d5 {[%emt 0:05:48]} exd5 {[%emt 0:02:37]} 21. exd5 {[%emt 0:01:07]} Bxd5 {[%emt 0:07:00]} 22. Qe2 {[%emt 0:01:20]} Bd6 {[%emt 0:08:43]} 23. Ng6+ {[%emt 0:04:08]} fxg6 {[%emt 0:02:33]} 24. Bxd6+ {[%emt 0:00:10]} Rxd6 {[%emt 0:05:04]} 25. Qe7+ {[%emt 0:00:07]} Kg8 {[%emt 0:00:05]} 26. Qxd6 {[%emt 0:00:15]} Qg4 {[%emt 0:00:45]} 27. Qg3 {[%emt 0:01:34]} Qxg3 {[%emt 0:02:32]} 28. hxg3 {[%emt 0:00:02]} Kf7 {[%emt 0:01:10]} 29. Re5 {[%emt 0:02:14]} Rf8 {[%emt 0:03:56]} 30. Rbe1 {[%emt 0:01:26]} Bxa2 {[%emt 0:00:36]} 31. Re7+ {[%emt 0:00:29]} Kg8 {[%emt 0:00:08]} 32. Rxa7 {[%emt 0:00:20]} Bd5 {[%emt 0:00:35]} 33. Ree7 {[%emt 0:00:25]} Rf7 {[%emt 0:01:55]} 34. Rxf7 {[%emt 0:00:53]} Bxf7 {[%emt 0:00:02]} 35. Ra8+ {[%emt 0:00:31]} Kh7 {[%emt 0:00:19]} 36. f3 {[%emt 0:03:46]} Nd5 {[%emt 0:00:56]} 37. Bc4 {[%emt 0:01:19]} b5 {[%emt 0:06:13]} 38. Bxd5 {[%emt 0:00:35]} Bxd5 {[%emt 0:00:02]} 39. Rc8 {[%emt 0:00:40]} c4 {[%emt 0:02:08]} 40. Rc5 {[%emt 0:00:00]} Be6 {[%emt 0:00:00]} 41. Rxb5 {[%emt 0:02:30]} g5 {[%emt 0:02:26]} 42. Rb6 {[%emt 0:00:48]} Bf5 {[%emt 0:00:19]} 43. Kf2 {[%emt 0:00:43]} Bd3 {[%emt 0:01:00]} 44. Rd6 {[%emt 0:01:27]} 1-0

[Event "European Womens-ch 2025"]
[Site "Rhodes"]
[Date "2025.04.11"]
[Round "11.55"]
[White "Subramanian, Anusha"]
[Black "Nahapetyan, Ani"]
[Result "1-0"]
[Annotator "NA"]
[ECO "B51"]
[WhiteElo "2026"]
[BlackElo "1887"]
[PlyCount "83"]
[EventDate "2025.03.29"]
[EventType "swiss"]
[EventCountry "GRE"]
[SourceTitle "playchess.com"]
[Source "ChessBase"]
[SourceQuality "1"]
[TimeControl "40/5400+30:1800+30"]

1. e4 {[%emt 1:31:00]} c5 {[%emt 1:31:00]} 2. Nf3 {[%emt 0:00:30]} d6 {[%emt 0:00:30]} 3. Bb5+ {[%emt 0:00:30]} Nd7 {[%emt 0:00:30]} 4. d4 {[%emt 0:00:30]} cxd4 {[%emt 0:00:30]} 5. Nxd4 {[%emt 0:00:30]} Ngf6 {[%emt 0:00:30]} 6. O-O {[%emt 0:00:30]} a6 {[%emt 0:00:30]} 7. Ba4 {[%emt 0:00:30]} e6 {[%emt 0:00:30]} 8. Re1 {[%emt 0:00:30]} Be7 {[%emt 0:00:30]} 9. c4 {[%emt 0:00:30]} O-O {[%emt 0:00:30]} 10. Bc2 {[%emt 0:00:30]} Qc7 {[%emt 0:00:30]} 11. b3 {[%emt 0:00:30]} b6 {[%emt 0:00:30]} 12. Bb2 {[%emt 0:00:30]} Bb7 {[%emt 0:00:30]} 13. Nc3 {[%emt 0:00:30]} Ne5 {[%emt 0:00:30]} 14. f4 Nc6 {[%emt 0:00:30]} 15. Nxc6 Bxc6 {[%emt 0:00:30]} 16. Qf3 b5 {[%emt 0:00:30]} 17. cxb5 axb5 {[%emt 0:00:30]} 18. Ne2 e5 {[%emt 0:00:30]} 19. h3 Bb7 {[%emt 0:00:30]} 20. Rec1 {[%emt 0:03:30]} Rfc8 21. fxe5 {[%emt 0:00:30]} dxe5 {[%emt 0:01:00]} 22. Bd3 {[%emt 0:00:30]} Qb6+ {[%emt 0:00:30]} 23. Kh2 {[%emt 0:00:30]} Bd6 {[%emt 0:00:30]} 24. Rf1 Rd8 {[%emt 0:00:30]} 25. Ng3 Bc7 {[%emt 0:00:30]} 26. a3 b4 {[%emt 0:00:30]} 27. a4 Rxd3 {[%emt 0:00:30]} 28. Qxd3 Ba6 {[%emt 0:00:30]} 29. Qf3 Bxf1 {[%emt 0:00:30]} 30. Rxf1 Qe6 {[%emt 0:00:30]} 31. Rc1 Rc8 {[%emt 0:00:30]} 32. Nf5 g6 {[%emt 0:00:30]} 33. Rc6 gxf5 34. Rxe6 fxe6 {[%emt 0:01:00]} 35. Qg3+ Kf7 {[%emt 0:00:30]} 36. exf5 {[%emt 0:06:30]} exf5 {[%emt 0:00:30]} 37. Kh1 {[%emt 0:00:30]} Ne4 {[%emt 0:00:30]} 38. Qf3 {[%emt 0:00:30]} Ke6 {[%emt 0:00:30]} 39. g4 Nd6 {[%emt 0:00:30]} 40. Qe2 e4 {[%emt 0:00:30]} 41. gxf5+ {[%emt 0:31:30]} Kxf5 {[%emt 0:30:30]} 42. Qg4# {[%emt 0:00:30]} 1-0

[Event "European Womens-ch 2025"]
[Site "Rhodes"]
[Date "2025.04.11"]
[Round "11.56"]
[White "Kalyva, Kyriaki"]
[Black "Bhatia, Kanishka"]
[Result "1-0"]
[Annotator "NA"]
[ECO "D00"]
[WhiteElo "1885"]
[BlackElo "2012"]
[PlyCount "81"]
[EventDate "2025.03.29"]
[EventType "swiss"]
[EventCountry "GRE"]
[SourceTitle "playchess.com"]
[Source "ChessBase"]
[SourceQuality "1"]
[TimeControl "40/5400+30:1800+30"]

1. d4 {[%emt 0:00:03]} d5 {[%emt 0:00:21]} 2. Nc3 {[%emt 0:00:05]} Nf6 {[%emt 0:00:11]} 3. Bf4 {[%emt 0:00:06]} e6 {[%emt 0:00:28]} 4. e3 {[%emt 0:00:11]} Bd6 {[%emt 0:00:05]} 5. Qf3 {[%emt 0:00:19]} a6 {[%emt 0:00:48]} 6. Bd3 {[%emt 0:00:45]} c5 {[%emt 0:01:23]} 7. Bxd6 {[%emt 0:09:17]} Qxd6 {[%emt 0:00:09]} 8. dxc5 {[%emt 0:00:37]} Qxc5 {[%emt 0:00:13]} 9. Qg3 {[%emt 0:00:39]} O-O {[%emt 0:00:32]} 10. Nf3 {[%emt 0:04:14]} Nc6 {[%emt 0:00:59]} 11. O-O {[%emt 0:01:30]} Re8 {[%emt 0:01:02]} 12. Ne5 {[%emt 0:04:01]} Qd6 {[%emt 0:04:03]} 13. f4 {[%emt 0:07:16]} Nb4 {[%emt 0:10:52]} 14. a3 {[%emt 0:04:58]} Nxd3 {[%emt 0:00:09]} 15. cxd3 {[%emt 0:00:14]} d4 {[%emt 0:00:18]} 16. Ne4 {[%emt 0:00:28]} Nxe4 {[%emt 0:00:28]} 17. dxe4 {[%emt 0:00:05]} f6 {[%emt 0:02:14]} 18. Ng4 {[%emt 0:00:51]} Kh8 {[%emt 0:03:04]} 19. e5 {[%emt 0:03:54]} fxe5 {[%emt 0:10:43]} 20. fxe5 {[%emt 0:03:53]} Qe7 {[%emt 0:02:28]} 21. exd4 {[%emt 0:06:15]} Bd7 {[%emt 0:00:20]} 22. Ne3 {[%emt 0:02:34]} Bb5 {[%emt 0:01:01]} 23. Rfd1 {[%emt 0:10:05]} a5 {[%emt 0:02:26]} 24. Rac1 {[%emt 0:05:06]} Rac8 {[%emt 0:02:17]} 25. d5 {[%emt 0:15:10]} Rxc1 {[%emt 0:02:25]} 26. Rxc1 {[%emt 0:00:04]} exd5 {[%emt 0:00:19]} 27. Nf5 {[%emt 0:00:55]} Qxe5 {[%emt 0:02:23]} 28. Qxe5 {[%emt 0:00:16]} Rxe5 {[%emt 0:00:04]} 29. Nd6 {[%emt 0:00:05]} Be8 {[%emt 0:03:38]} 30. Rc8 {[%emt 0:00:12]} Kg8 {[%emt 0:00:52]} 31. Rxe8+ {[%emt 0:00:15]} Rxe8 {[%emt 0:00:05]} 32. Nxe8 {[%emt 0:00:05]} Kf8 {[%emt 0:01:50]} 33. Nc7 {[%emt 0:00:15]} Ke7 {[%emt 0:00:12]} 34. Nxd5+ {[%emt 0:00:05]} Kd6 {[%emt 0:00:05]} 35. Ne3 {[%emt 0:02:47]} Kc5 {[%emt 0:00:13]} 36. Kf2 {[%emt 0:00:18]} b5 {[%emt 0:00:29]} 37. Ke2 {[%emt 0:00:13]} b4 {[%emt 0:00:35]} 38. Kd3 {[%emt 0:00:11]} g6 {[%emt 0:00:35]} 39. a4 {[%emt 0:00:26]} h5 {[%emt 0:00:54]} 40. b3 {[%emt 0:00:00]} g5 {[%emt 0:00:00]} 41. Nc4 {[%emt 0:00:10]} 1-0